fUST/lending_fUST_20250501
["ID","MTS","AMOUNT","RATE_DAILY","PERIOD"]
[359489627,1746059438626,-135.19611845,0.00038356,12]
[359489628,1746059438635,-400.0,0.00038356,12]
[359489629,1746059438645,-400.0,0.00038356,12]
[359489630,1746059438656,-400.0,0.00038356,12]
[359489631,1746059438665,-400.0,0.00038356,12]
[359489632,1746059438675,-400.0,0.00038356,12]
[359489633,1746059438684,-400.0,0.00038356,12]
[359489634,1746059438694,-400.0,0.00038356,12]
[359489635,1746059438705,-400.0,0.00038356,7]
[359489636,1746059438715,-400.0,0.00038356,7]
[359489637,1746059438725,-400.0,0.00038356,12]
[359489638,1746059438734,-400.0,0.00038356,12]
[359489639,1746059438743,-400.0,0.00038356,12]
[359489640,1746059438756,-400.0,0.00038356,12]
[359489641,1746059438766,-400.0,0.00038356,12]
[359489642,1746059438776,-400.0,0.00038356,12]
[359489643,1746059438786,-400.0,0.00038356,12]
[359489644,1746059438795,-400.0,0.00038356,12]
[359489645,1746059438806,-400.0,0.00038356,12]
[359489646,1746059438820,-400.0,0.00038356,12]
[359489647,1746059438830,-400.0,0.00038356,12]
[359489648,1746059438840,-400.0,0.00038356,12]
[359489649,1746059438850,-400.0,0.00038356,12]
[359489650,1746059438860,-400.0,0.00038356,12]
[359489651,1746059438870,-400.0,0.00038356,12]
[359489652,1746059438880,-400.0,0.00038356,12]
[359489653,1746059438890,-400.0,0.00038356,12]
[359489654,1746059438901,-310.11760161,0.00038356,12]
[359489655,1746059438935,-67.76885318,0.00038356,12]
[359489656,1746059438947,-22.11354521,0.00038356,12]
[359489657,1746059438957,-400.0,0.00038356,12]
[359489658,1746059438967,-285.1,0.00038356,12]
[359489659,1746059438976,-400.0,0.00038356,12]
[359489660,1746059438986,-400.0,0.00038356,12]
[359489661,1746059438995,-400.0,0.00038356,12]
[359489662,1746059439006,-400.0,0.00038356,12]
[359489663,1746059439015,-343.18359789,0.00038356,12]
[359489664,1746059439027,-173.57640211,0.00038356,12]
[359489665,1746059439036,-400.0,0.00038356,12]
[359489666,1746059439046,-182.31334959,0.00038356,12]
[359489667,1746059439059,-217.68665041,0.00038356,12]
[359489668,1746059439069,-400.0,0.00038356,12]
[359489669,1746059439079,-400.0,0.00038356,12]
[359489670,1746059439089,-78.92402671,0.00038356,12]
[359489671,1746059439106,-321.07597329,0.00038356,12]
[359489672,1746059439117,-400.0,0.00038356,12]
[359489673,1746059439128,-77.30673539,0.00038356,12]
[359489683,1746059440920,-322.69326461,0.00038356,12]
[359489684,1746059440930,-619.89,0.00038356,12]
[359489685,1746059440940,-619.89,0.00038356,12]
[359489686,1746059440950,-400.0,0.00038356,12]
[359489687,1746059440959,-400.0,0.00038356,12]
[359489688,1746059440970,-400.0,0.00038356,12]
[359489689,1746059440980,-400.0,0.00038356,12]
[359489690,1746059440989,-400.0,0.00038356,12]
[359489691,1746059440999,-400.0,0.00038356,12]
[359489692,1746059441008,-400.0,0.00038356,12]
[359489693,1746059441018,-400.0,0.00038356,12]
[359489694,1746059441028,-400.0,0.00038356,12]
[359489695,1746059441037,-400.0,0.00038356,12]
[359489696,1746059441047,-400.0,0.00038356,12]
[359489697,1746059441056,-500.0,0.00038356,12]
[359489698,1746059441066,-400.0,0.00038356,12]
[359489699,1746059441075,-400.0,0.00038356,12]
[359489700,1746059441085,-400.0,0.00038356,12]
[359489701,1746059441094,-295.78830249,0.00038373,5]
[359489702,1746059441104,-500.0,0.00038373,5]
[359489703,1746059441113,-500.0,0.00038373,5]
[359489704,1746059441123,-500.0,0.00038373,5]
[359489705,1746059441132,-502.78828618,0.00038373,5]
[359489706,1746059441141,-221.4,0.00038373,2]
[359489707,1746059441152,-500.0,0.00038373,5]
[359489708,1746059441162,-325.63856201,0.00038536,2]
[359489709,1746059441171,-400.0,0.00038872,12]
[359489710,1746059441181,-400.0,0.00038872,12]
[359489711,1746059441191,-317.72,0.00038872,12]
[359489712,1746059441202,-400.0,0.00038872,12]
[359489713,1746059441213,-400.0,0.00038872,12]
[359489714,1746059441222,-400.0,0.00038872,12]
[359489715,1746059441232,-400.0,0.00038872,12]
[359489716,1746059441242,-400.0,0.00038872,12]
[359489717,1746059441254,-400.0,0.00038872,12]
[359489718,1746059441263,-400.0,0.00038872,12]
[359489719,1746059441272,-153.19,0.00038897,12]
[359489720,1746059441282,-438.0,0.00038897,12]
[359489721,1746059441291,-500.0,0.00038897,12]
[359489722,1746059441301,-201.3849921,0.00038898,12]
[359489723,1746059441311,-166.17522551,0.00038898,12]
[359489724,1746059441320,-400.0,0.00038899,12]
[359489725,1746059441330,-400.0,0.00038899,12]
[359489726,1746059441341,-400.0,0.00038899,12]
[359489727,1746059441351,-400.0,0.00038899,12]
[359489728,1746059441360,-400.0,0.00038899,12]
[359489729,1746059441370,-400.0,0.00038899,12]
[359489730,1746059441380,-400.0,0.00038899,12]
[359489731,1746059441389,-400.0,0.00038899,12]
[359489732,1746059441400,-400.0,0.00038899,12]
[359489733,1746059441410,-220.32,0.00038899,12]
[359489734,1746059441419,-400.0,0.00038899,12]
[359489735,1746059441429,-400.0,0.00038899,12]
[359489736,1746059441439,-286.68,0.00038899,12]
[359489737,1746059441448,-476.68,0.00038899,12]
[359489738,1746059441458,-400.0,0.00038899,7]
[359489739,1746059441467,-400.0,0.00038899,7]
[359489740,1746059441477,-400.0,0.00038899,12]
[359489741,1746059441487,-400.0,0.00038899,12]
[359489742,1746059441496,-400.0,0.00038899,12]
[359489743,1746059441506,-400.0,0.00038899,12]
[359489744,1746059441516,-451.41,0.00038899,12]
[359489745,1746059441526,-447.7,0.00038899,12]
[359489746,1746059441536,-400.0,0.00038899,12]
[359489747,1746059441546,-400.0,0.00038899,12]
[359489748,1746059441556,-331.42,0.00038899,12]
[359489749,1746059441565,-400.0,0.00038899,12]
[359489750,1746059441575,-400.0,0.00038899,12]
[359489751,1746059441585,-340.42,0.00038899,12]
[359489752,1746059441594,-400.0,0.00038899,12]
[359489753,1746059441603,-400.0,0.00038899,12]
[359489754,1746059441613,-619.89,0.00038899,12]
[359489755,1746059441622,-619.89,0.00038899,12]
[359489756,1746059441634,-400.0,0.00038899,12]
[359489757,1746059441644,-400.0,0.00038899,12]
[359489758,1746059441657,-400.0,0.00038899,12]
[359489759,1746059441667,-400.0,0.00038899,12]
[359489760,1746059441676,-400.0,0.00038899,12]
[359489761,1746059441685,-400.0,0.00038899,12]
[359489762,1746059441695,-400.0,0.00038899,12]
[359489763,1746059441705,-496.06,0.00038899,12]
[359489764,1746059441715,-400.0,0.00038899,12]
[359489765,1746059441895,-500.0,0.00038899,12]
[359489766,1746059441908,-400.0,0.00038899,12]
[359489767,1746059441919,-400.0,0.00038899,12]
[359489768,1746059441930,-23750.74,0.000389,30]
[359489769,1746059441943,-274.046577,0.00038933,2]
[359489770,1746059441953,-200.0,0.00039013,120]
[359489771,1746059441963,-177.73,0.00039149,12]
[359489772,1746059441974,-447.2,0.00039149,12]
[359489773,1746059441983,-400.0,0.00039149,12]
[359489774,1746059441993,-400.0,0.00039149,12]
[359489775,1746059442002,-400.0,0.00039149,12]
[359489776,1746059442012,-326.32,0.00039149,12]
[359489777,1746059442022,-5000.0,0.0003915,2]
[359489778,1746059442031,-403.0,0.00039491,2]
[359489779,1746059442041,-545.0,0.00039491,2]
[359489780,1746059442051,-1704.51267027,0.00039562,3]
[359489781,1746059442061,-800.0,0.00039664,60]
[359489782,1746059442070,-273.5418424,0.00039922,2]
[359489783,1746059442080,-501.32976245,0.00039973,5]
[359489784,1746059442091,-500.0,0.00039998,31]
[359489785,1746059442101,-298.9353298,0.00039998,31]
[359489786,1746059442112,-429.12665352,0.00039998,31]
[359489787,1746059442122,-500.0,0.00039998,31]
[359489788,1746059442134,-500.0,0.00039998,31]
[359489789,1746059442144,-391.51700807,0.00039998,31]
[359489790,1746059442156,-500.0,0.00039998,31]
[359489791,1746059442165,-500.0,0.00039998,31]
[359489792,1746059442177,-500.0,0.00039998,31]
[359489793,1746059442188,-624.43535983,0.00039998,31]
[359489794,1746059442198,-500.0,0.00039998,31]
[359489795,1746059442208,-500.0,0.00039998,31]
[359489796,1746059442219,-500.0,0.00039998,31]
[359489797,1746059442229,-110886.91039,0.00039999,4]
[359489798,1746059442239,-8641.301829,0.0004,120]
[359489799,1746059442250,-421.37435881,0.00040047,2]
[359489800,1746059442260,-182.04053198,0.0004005,2]
[359489801,1746059442273,-840.90604152,0.0004005,2]
[359489802,1746059442285,-151.0,0.00040102,4]
[359489803,1746059442294,-267.79664922,0.00040102,4]
[359489804,1746059442305,-511.18,0.00040104,12]
[359489805,1746059442315,-400.0,0.00040104,12]
[359489806,1746059442325,-400.0,0.00040104,12]
[359489807,1746059442335,-400.0,0.00040104,12]
[359489808,1746059442345,-400.0,0.00040104,12]
[359489809,1746059442354,-400.0,0.00040199,12]
[359489810,1746059442364,-400.0,0.00040199,12]
[359489811,1746059442374,-400.0,0.00040199,12]
[359489812,1746059442383,-565.56,0.000402,2]
[359489813,1746059442393,-151.0,0.000402,14]
[359489814,1746059442404,-151.0,0.00040211,14]
[359489815,1746059442414,-151.0,0.00040211,2]
[359489816,1746059442424,-151.0,0.00040211,14]
[359489817,1746059442434,-800.0,0.00040212,60]
[359489818,1746059442444,-1704.51267027,0.0004022,3]
[359489819,1746059442453,-400.0,0.00040223,7]
[359489820,1746059442463,-400.0,0.00040223,12]
[359489821,1746059442472,-400.0,0.00040223,12]
[359489822,1746059442482,-619.89,0.00040223,12]
[359489823,1746059442493,-400.0,0.00040223,12]
[359489824,1746059442503,-400.0,0.00040223,12]
[359489825,1746059442512,-400.0,0.00040223,12]
[359489826,1746059442523,-400.0,0.00040224,12]
[359489827,1746059442533,-400.0,0.00040224,12]
[359489828,1746059442543,-400.0,0.00040224,7]
[359489829,1746059442552,-400.0,0.00040224,12]
[359489830,1746059442563,-400.0,0.00040224,12]
[359489831,1746059442572,-400.0,0.00040224,12]
[359489832,1746059442582,-400.0,0.00040224,12]
[359489833,1746059442592,-619.89,0.00040224,12]
[359489834,1746059442602,-400.0,0.00040224,12]
[359489835,1746059442612,-400.0,0.00040224,12]
[359489836,1746059442622,-373.28,0.00040224,12]
[359489837,1746059442631,-400.0,0.00040224,12]
[359489838,1746059442641,-400.0,0.00040224,12]
[359489839,1746059442651,-400.0,0.00040224,12]
[359489840,1746059442661,-20663.92884962,0.00040253,2]
[359489841,1746059442671,-2200.0,0.00040297,14]
[359489842,1746059442682,-400.0,0.00040299,12]
[359489843,1746059442692,-400.0,0.00040299,12]
[359489844,1746059442701,-400.0,0.00040299,12]
[359489845,1746059442713,-400.0,0.00040299,12]
[359489846,1746059442726,-2000.0,0.000403,26]
[359489847,1746059442736,-650.25,0.00040346,120]
[359489848,1746059442745,-151.0,0.000404,16]
[359489849,1746059442755,-1670.22,0.000405,30]
[359489850,1746059442765,-151.0,0.000405,10]
[359489851,1746059442775,-400.0,0.00040545,12]
[359489852,1746059442784,-237.27,0.00040545,12]
[359489853,1746059442794,-303.48,0.00040545,12]
[359489854,1746059442804,-650.25,0.00040546,120]
[359489855,1746059442817,-400.0,0.00040554,7]
[359489856,1746059442828,-400.0,0.00040554,12]
[359489857,1746059442838,-451.92,0.00040554,12]
[359489858,1746059442848,-619.89,0.00040554,12]
[359489859,1746059442858,-400.0,0.00040554,12]
[359489860,1746059442868,-508.08,0.00040554,12]
[359489861,1746059442877,-13428.2183501,0.00040559,2]
[359489862,1746059442888,-250.0,0.000406,14]
[359489863,1746059442898,-250.0,0.000406,14]
[359489864,1746059442909,-250.0,0.000406,14]
[359489865,1746059442919,-250.0,0.000406,14]
[359489866,1746059442929,-250.0,0.000406,14]
[359489867,1746059442938,-262.2,0.000406,14]
[359489868,1746059442948,-3203.17,0.000406,7]
[359489869,1746059442958,-151.0,0.000406,14]
[359489870,1746059442967,-151.0,0.000406,14]
[359489871,1746059442977,-1704.51267027,0.00040626,3]
[359489872,1746059442987,-400.0,0.00040626,12]
[359489873,1746059442997,-722.0,0.00040629,5]
[359489874,1746059443008,-400.0,0.00040631,12]
[359489875,1746059443020,-400.0,0.00040631,12]
[359489876,1746059443031,-534.28,0.00040631,12]
[359489877,1746059443042,-400.0,0.00040631,12]
[359489878,1746059443053,-151.0,0.00040632,14]
[359489879,1746059443063,-151.0,0.00040632,14]
[359489880,1746059443072,-151.0,0.00040632,14]
[359489881,1746059443083,-151.0,0.00040632,14]
[359489882,1746059443094,-151.0,0.00040632,14]
[359489883,1746059443105,-151.0,0.00040632,14]
[359489884,1746059443115,-151.0,0.00040632,14]
[359489885,1746059443125,-151.0,0.00040632,14]
[359489886,1746059443134,-250.426367,0.00040632,14]
[359489887,1746059443143,-151.0,0.00040632,14]
[359489888,1746059443155,-176.442922,0.00040632,14]
[359489889,1746059443164,-434.36,0.00040635,12]
[359489890,1746059443174,-400.0,0.00040635,12]
[359489891,1746059443184,-400.0,0.00040635,7]
[359489892,1746059443193,-188.44265886,0.00040635,7]
[359489893,1746059443203,-400.0,0.00040635,12]
[359489894,1746059443213,-400.0,0.00040635,12]
[359489895,1746059443225,-400.0,0.00040635,12]
[359489896,1746059443238,-619.89,0.00040635,12]
[359489897,1746059443248,-619.89,0.00040635,12]
[359489898,1746059443257,-400.0,0.00040635,12]
[359489899,1746059443267,-400.0,0.00040635,12]
[359489900,1746059443277,-400.0,0.00040635,12]
[359489901,1746059443286,-151.0,0.00040636,14]
[359489902,1746059443295,-151.0,0.00040636,14]
[359489903,1746059443305,-179.107275,0.00040636,14]
[359489904,1746059443315,-217.72044,0.00040636,14]
[359489905,1746059443325,-151.0,0.00040636,14]
[359489906,1746059443335,-151.222916,0.00040636,14]
[359489907,1746059443346,-155.918324,0.00040636,14]
[359489908,1746059443355,-151.0,0.00040636,14]
[359489909,1746059443365,-151.0,0.00040636,14]
[359489910,1746059443374,-151.0,0.00040636,14]
[359489911,1746059443384,-151.0,0.00040636,14]
[359489912,1746059443394,-151.308887,0.00040636,14]
[359489913,1746059443406,-400.0,0.00040637,12]
[359489914,1746059443415,-400.0,0.00040637,12]
[359489915,1746059443425,-400.0,0.00040637,12]
[359489916,1746059443435,-400.0,0.00040637,12]
[359489917,1746059443446,-400.0,0.00040637,12]
[359489918,1746059443455,-400.0,0.00040637,12]
[359489919,1746059443465,-400.0,0.00040637,12]
[359489920,1746059443474,-619.89,0.00040637,12]
[359489922,1746059443484,-400.0,0.00040637,12]
[359489923,1746059443493,-400.0,0.00040637,12]
[359489924,1746059443503,-217.72044,0.00040638,14]
[359489925,1746059443513,-217.72044,0.00040638,14]
[359489927,1746059443522,-217.72044,0.00040638,14]
[359489929,1746059443532,-217.72044,0.00040638,14]
[359489930,1746059443542,-217.72044,0.00040638,14]
[359489931,1746059443552,-217.72044,0.00040638,14]
[359489932,1746059443561,-217.72044,0.00040638,14]
[359489933,1746059443571,-217.72044,0.00040638,14]
[359489934,1746059443581,-217.72044,0.00040638,14]
[359489935,1746059443590,-217.72044,0.00040638,14]
[359489937,1746059443600,-217.72044,0.00040638,14]
[359489939,1746059443614,-217.72044,0.00040638,14]
[359489940,1746059443623,-217.72044,0.00040638,14]
[359489941,1746059443632,-217.72044,0.00040638,14]
[359489942,1746059443642,-217.72044,0.00040638,14]
[359489943,1746059443652,-217.72044,0.00040638,14]
[359489944,1746059443662,-217.72044,0.00040638,14]
[359489945,1746059443671,-217.720434,0.00040638,14]
[359489946,1746059443681,-151.0,0.00040638,14]
[359489947,1746059443690,-151.0,0.00040638,14]
[359489948,1746059443701,-151.0,0.00040638,14]
[359489949,1746059443711,-151.0,0.00040638,14]
[359489950,1746059443720,-151.0,0.00040638,14]
[359489951,1746059443730,-158.65203,0.00040638,14]
[359489952,1746059443740,-151.0,0.00040638,14]
[359489953,1746059443749,-151.0,0.00040638,14]
[359489954,1746059443759,-151.0,0.00040638,14]
[359489955,1746059443768,-151.0,0.00040638,14]
[359489956,1746059443777,-151.0,0.00040638,14]
[359489957,1746059443787,-151.0,0.00040638,14]
[359489958,1746059443796,-151.0,0.00040638,14]
[359489959,1746059443807,-151.0,0.00040638,14]
[359489960,1746059443822,-151.0,0.00040638,14]
[359489961,1746059443832,-151.0,0.00040638,14]
[359489962,1746059443842,-151.0,0.00040638,14]
[359489963,1746059443852,-151.0,0.00040638,14]
[359489964,1746059443861,-151.0,0.00040638,14]
[359489965,1746059443871,-151.217405,0.00040638,14]
[359489966,1746059443881,-176.681835,0.00040638,14]
[359489967,1746059443890,-151.0,0.00040638,2]
[359489968,1746059443901,-151.0,0.00040638,14]
[359489969,1746059443910,-400.0,0.00040638,12]
[359489970,1746059443920,-619.89,0.00040638,12]
[359489971,1746059443930,-359.3,0.00040638,12]
[359489972,1746059443939,-400.0,0.00040638,12]
[359489973,1746059443950,-151.0,0.00040639,14]
[359489974,1746059443961,-151.0,0.00040639,14]
[359489975,1746059443970,-151.0,0.00040639,14]
[359489976,1746059443980,-151.0,0.00040639,14]
[359489977,1746059443991,-151.0,0.00040639,14]
[359489978,1746059444002,-151.0,0.00040639,14]
[359489979,1746059444012,-151.0,0.00040639,14]
[359489980,1746059444022,-151.0,0.00040639,14]
[359489981,1746059444031,-151.0,0.00040639,14]
[359489982,1746059444040,-151.0,0.00040639,14]
[359489983,1746059444049,-151.0,0.00040639,14]
[359489984,1746059444059,-151.0,0.00040639,14]
[359489985,1746059444068,-164.55712,0.00040639,14]
[359489986,1746059444076,-151.0,0.00040639,14]
[359489987,1746059444086,-151.0,0.00040639,14]
[359489988,1746059444095,-151.0,0.00040639,14]
[359489989,1746059444103,-151.0,0.00040639,14]
[359489990,1746059444112,-151.0,0.00040639,14]
[359489991,1746059444121,-151.0,0.00040639,14]
[359489992,1746059444130,-151.0,0.00040639,14]
[359489993,1746059444139,-151.0,0.00040639,14]
[359489994,1746059444148,-151.0,0.00040639,14]
[359489995,1746059444158,-151.0,0.00040639,14]
[359489996,1746059444167,-151.0,0.00040639,14]
[359489997,1746059444176,-260.254816,0.00040639,14]
[359489998,1746059444185,-151.0,0.00040639,14]
[359489999,1746059444194,-74.10413948,0.00040639,14]
[359490000,1746059444214,-117.98876252,0.00040639,14]
[359490001,1746059444223,-151.0,0.00040639,14]
[359490002,1746059444231,-151.0,0.00040639,14]
[359490003,1746059444240,-151.0,0.00040639,14]
[359490004,1746059444250,-151.268531,0.00040639,14]
[359490005,1746059444259,-151.0,0.00040639,14]
[359490006,1746059444268,-151.0,0.00040639,14]
[359490007,1746059444277,-151.0,0.00040639,14]
[359490008,1746059444286,-151.0,0.00040639,14]
[359490009,1746059444295,-151.0,0.00040639,14]
[359490010,1746059444304,-151.0,0.00040639,14]
[359490011,1746059444313,-151.0,0.00040639,14]
[359490012,1746059444322,-151.0,0.00040639,14]
[359490013,1746059444331,-172.688586,0.00040639,14]
[359490014,1746059444340,-151.0,0.00040639,2]
[359490015,1746059444349,-151.0,0.00040639,2]
[359490016,1746059444359,-151.0,0.00040639,14]
[359490017,1746059444399,-151.0,0.00040639,14]
[359490018,1746059444409,-151.0,0.00040639,14]
[359490019,1746059444418,-13.22786751,0.00040639,14]
[359490020,1746059444471,-400.0,0.00038356,12]
[359490021,1746059444480,-400.0,0.00038356,12]
[359490022,1746059444489,-400.0,0.00038356,12]
[359490023,1746059444498,-400.0,0.00038899,12]
[359490024,1746059444507,-400.0,0.00038899,12]
[359490025,1746059444516,-364.29,0.00038899,12]
[359490026,1746059444525,-400.0,0.00039999,12]
[359490027,1746059444535,-400.0,0.00040224,12]
[359490028,1746059444544,-137.77213249,0.00040639,14]
[359490029,1746059444553,-151.0,0.00040639,14]
[359490030,1746059444563,-151.0,0.00040639,14]
[359490031,1746059444572,-252.672426,0.00040639,14]
[359490032,1746059444582,-159.185351,0.00040639,14]
[359490033,1746059444591,-159.185351,0.00040639,14]
[359490034,1746059444600,-159.185351,0.00040639,14]
[359490035,1746059444610,-159.185351,0.00040639,14]
[359490036,1746059444620,-159.185351,0.00040639,14]
[359490037,1746059444629,-159.185351,0.00040639,14]
[359490038,1746059444639,-159.185351,0.00040639,14]
[359490039,1746059444648,-159.185351,0.00040639,14]
[359490040,1746059444659,-158.31241802,0.00040639,14]
[359490041,1746059444671,-0.87293298,0.00040639,14]
[359490042,1746059444681,-159.185351,0.00040639,14]
[359490043,1746059444690,-159.185351,0.00040639,14]
[359490044,1746059444699,-59.35072962,0.00040639,14]
[359490045,1746059444711,-99.83462138,0.00040639,14]
[359490046,1746059444721,-159.185351,0.00040639,14]
[359490047,1746059444731,-159.185351,0.00040639,14]
[359490048,1746059444740,-159.185351,0.00040639,14]
[359490049,1746059444750,-159.185351,0.00040639,14]
[359490050,1746059444759,-159.185351,0.00040639,14]
[359490051,1746059444769,-159.185351,0.00040639,14]
[359490052,1746059444779,-159.185351,0.00040639,14]
[359490053,1746059444788,-159.185357,0.00040639,14]
[359490054,1746059444797,-1704.51267027,0.00040645,3]
[359490055,1746059444807,-3409.02534054,0.00040649,3]
[359490056,1746059444817,-400.0,0.00040653,12]
[359490057,1746059444827,-619.89,0.00040653,12]
[359490058,1746059444837,-400.0,0.00040654,12]
[359490059,1746059444847,-400.0,0.00040654,12]
[359490060,1746059444856,-400.0,0.00040654,12]
[359490061,1746059444866,-400.0,0.00040654,12]
[359490062,1746059444875,-400.0,0.00040654,12]
[359490063,1746059444886,-516.9,0.00040654,12]
[359490064,1746059444896,-400.0,0.00040654,12]
[359490065,1746059444905,-400.0,0.00040654,12]
[359490066,1746059444914,-400.0,0.00040654,12]
[359490067,1746059444924,-400.0,0.00040654,12]
[359490068,1746059444934,-400.0,0.00040654,12]
[359490069,1746059444943,-400.0,0.00040654,12]
[359490070,1746059444953,-400.0,0.00040654,12]
[359490071,1746059444962,-400.0,0.00040654,12]
[359490072,1746059444972,-400.0,0.00040654,12]
[359490073,1746059444982,-400.0,0.00040654,12]
[359490074,1746059444992,-400.0,0.00040654,12]
[359490075,1746059445001,-518.58618416,0.00040654,12]
[359490076,1746059445012,-30.17072771,0.00040654,12]
[359490077,1746059445024,-369.82927229,0.00040654,12]
[359490078,1746059445034,-242.48,0.00040654,12]
[359490079,1746059445045,-151.0,0.00040655,14]
[359490080,1746059445054,-151.0,0.00040655,14]
[359490081,1746059445064,-151.0,0.00040655,14]
[359490082,1746059445074,-151.0,0.00040655,14]
[359490083,1746059445084,-151.0,0.00040655,14]
[359490084,1746059445093,-151.0,0.00040655,14]
[359490085,1746059445103,-151.0,0.00040655,14]
[359490086,1746059445112,-151.0,0.00040655,14]
[359490087,1746059445122,-151.0,0.00040655,14]
[359490088,1746059445131,-49.29327909,0.00040655,14]
[359490089,1746059445144,-142.91034191,0.00040655,14]
[359490090,1746059445155,-151.0,0.00040655,14]
[359490091,1746059445164,-151.0,0.00040655,14]
[359490092,1746059445174,-151.0,0.00040655,14]
[359490093,1746059445183,-151.0,0.00040655,14]
[359490094,1746059445193,-151.0,0.00040655,14]
[359490095,1746059445202,-151.0,0.00040655,14]
[359490096,1746059445212,-177.509781,0.00040655,14]
[359490097,1746059445221,-272.164326,0.00040655,14]
[359490098,1746059445230,-272.164326,0.00040655,14]
[359490099,1746059445240,-272.164326,0.00040655,14]
[359490100,1746059445249,-272.164326,0.00040655,14]
[359490101,1746059445258,-272.164326,0.00040655,14]
[359490102,1746059445268,-272.164326,0.00040655,14]
[359490103,1746059445277,-272.164326,0.00040655,14]
[359490104,1746059445286,-272.164326,0.00040655,14]
[359490105,1746059445296,-272.164326,0.00040655,14]
[359490106,1746059445305,-272.164326,0.00040655,14]
[359490107,1746059445315,-272.164326,0.00040655,14]
[359490108,1746059445324,-272.164326,0.00040655,14]
[359490109,1746059445334,-272.164326,0.00040655,14]
[359490110,1746059445343,-272.164326,0.00040655,14]
[359490111,1746059445353,-272.164326,0.00040655,14]
[359490112,1746059445363,-272.164326,0.00040655,14]
[359490113,1746059445373,-272.164326,0.00040655,14]
[359490114,1746059445382,-272.164326,0.00040655,14]
[359490115,1746059445393,-272.164326,0.00040655,14]
[359490116,1746059445402,-272.164329,0.00040655,14]
[359490117,1746059445412,-833.48707,0.00040655,14]
[359490118,1746059445422,-833.48707,0.00040655,14]
[359490119,1746059445432,-408.69489257,0.00040655,14]
[359490120,1746059445445,-424.79217743,0.00040655,14]
[359490121,1746059445455,-833.48707,0.00040655,14]
[359490122,1746059445464,-833.48707,0.00040655,14]
[359490123,1746059445474,-833.48707,0.00040655,14]
[359490124,1746059445484,-833.48707,0.00040655,14]
[359490125,1746059445494,-833.48707,0.00040655,14]
[359490126,1746059445504,-833.48707,0.00040655,14]
[359490127,1746059445514,-833.48707,0.00040655,14]
[359490128,1746059445523,-833.48707,0.00040655,14]
[359490129,1746059445533,-833.487076,0.00040655,14]
[359490130,1746059445542,-151.0,0.00040655,14]
[359490131,1746059445553,-218.043711,0.00040655,14]
[359490132,1746059445562,-218.043711,0.00040655,14]
[359490133,1746059445572,-218.043711,0.00040655,14]
[359490134,1746059445582,-218.043711,0.00040655,14]
[359490135,1746059445592,-218.043711,0.00040655,14]
[359490136,1746059445602,-218.043711,0.00040655,14]
[359490137,1746059445613,-218.043711,0.00040655,14]
[359490138,1746059445623,-218.043711,0.00040655,14]
[359490139,1746059445633,-218.043711,0.00040655,14]
[359490140,1746059445644,-218.043711,0.00040655,14]